[Event "*** Titled Tuesday Blitz"]
[Site "Chess.com"]
[Date "2020.03.03"]
[Round "1"]
[White "LucaBrasi1968"]
[Black "vugarrasulov"]
[Result "0-1"]
[WhiteElo "2476"]
[BlackElo "2883"]
[TimeControl "180+1"]
[EndTime "13:07:44 PST"]
[Termination "vugarrasulov won by resignation"]

1. d4 {[%clk 0:03:00.1]} 1... Nf6 {[%clk 0:02:59.4]} 2. Nf3 {[%clk 0:03:00]}
2... e6 {[%clk 0:02:59.6]} 3. Bg5 {[%clk 0:03:00.4]} 3... b6 {[%clk 0:02:58.7]}
4. e3 {[%clk 0:03:00.7]} 4... Bb7 {[%clk 0:02:58.7]} 5. Bd3 {[%clk 0:03:01.2]}
5... Be7 {[%clk 0:02:58.1]} 6. Nbd2 {[%clk 0:03:00.1]} 6... O-O {[%clk
0:02:58.4]} 7. O-O {[%clk 0:02:59.4]} 7... h6 {[%clk 0:02:58.8]} 8. Bh4 {[%clk
0:02:58.7]} 8... c5 {[%clk 0:02:57.6]} 9. c3 {[%clk 0:02:58.3]} 9... d6 {[%clk
0:02:56.2]} 10. h3 {[%clk 0:02:58.5]} 10... Nc6 {[%clk 0:02:55]} 11. Bg3 {[%clk
0:02:58.2]} 11... Re8 {[%clk 0:02:48]} 12. Qe2 {[%clk 0:02:55.1]} 12... Bf8
{[%clk 0:02:45.8]} 13. Ba6 {[%clk 0:02:54]} 13... Qc8 {[%clk 0:02:44.2]} 14.
Bxb7 {[%clk 0:02:53.2]} 14... Qxb7 {[%clk 0:02:45.1]} 15. Rfd1 {[%clk
0:02:46.1]} 15... Rac8 {[%clk 0:02:43.2]} 16. a4 {[%clk 0:02:39.8]} 16... a6
{[%clk 0:02:43]} 17. Nc4 {[%clk 0:02:33.1]} 17... Ne4 {[%clk 0:02:42.2]} 18. Bh2
{[%clk 0:02:31.6]} 18... b5 {[%clk 0:02:34.1]} 19. Ncd2 {[%clk 0:02:29.7]} 19...
Nxd2 {[%clk 0:02:32.9]} 20. Qxd2 {[%clk 0:02:25.7]} 20... Na5 {[%clk 0:02:23.1]}
21. Qc2 {[%clk 0:02:05.8]} 21... b4 {[%clk 0:02:22.6]} 22. dxc5 {[%clk
0:01:58.5]} 22... d5 {[%clk 0:02:08.5]} 23. cxb4 {[%clk 0:01:11.9]} 23... Qxb4
{[%clk 0:02:09.4]} 24. Rd4 {[%clk 0:01:07]} 24... Qxc5 {[%clk 0:02:04.5]} 25.
Qxc5 {[%clk 0:01:01.9]} 25... Bxc5 {[%clk 0:02:05.4]} 26. Rd3 {[%clk 0:01:02.2]}
26... Bb4 {[%clk 0:01:57.1]} 27. Be5 {[%clk 0:01:00.9]} 27... f6 {[%clk
0:01:54.4]} 28. Bc3 {[%clk 0:00:51.8]} 28... Bxc3 {[%clk 0:01:54.3]} 29. bxc3
{[%clk 0:00:50.7]} 29... Kf7 {[%clk 0:01:48.4]} 30. Nd2 {[%clk 0:00:49.7]} 30...
Rb8 {[%clk 0:01:45.9]} 31. e4 {[%clk 0:00:48.9]} 31... Red8 {[%clk 0:01:34.4]}
32. exd5 {[%clk 0:00:47.2]} 32... Rxd5 {[%clk 0:01:35.3]} 33. Rxd5 {[%clk
0:00:47.1]} 33... exd5 {[%clk 0:01:36.2]} 34. Rd1 {[%clk 0:00:45.4]} 34... Rc8
{[%clk 0:01:35]} 35. Nf3 {[%clk 0:00:43.1]} 35... Rc5 {[%clk 0:01:34.1]} 36. Nd4
{[%clk 0:00:42.2]} 36... Rxc3 {[%clk 0:01:31.7]} 37. Nf5 {[%clk 0:00:42.1]}
37... Rc5 {[%clk 0:01:25.6]} 38. Re1 {[%clk 0:00:35.8]} 38... Nc6 {[%clk
0:01:25.5]} 39. g4 {[%clk 0:00:33]} 39... d4 {[%clk 0:01:20.5]} 40. Rd1 {[%clk
0:00:32.9]} 40... g6 {[%clk 0:01:17]} 41. Ng3 {[%clk 0:00:30.7]} 41... Re5
{[%clk 0:01:12]} 42. Kg2 {[%clk 0:00:29.2]} 42... Ke6 {[%clk 0:01:10.6]} 43. Kf3
{[%clk 0:00:29.1]} 43... Kd5 {[%clk 0:01:10.2]} 44. Ne2 {[%clk 0:00:26.8]} 44...
g5 {[%clk 0:01:01.3]} 45. Ng3 {[%clk 0:00:26.2]} 45... Re6 {[%clk 0:00:49]} 46.
Nf5 {[%clk 0:00:26.1]} 46... Kc4 {[%clk 0:00:48.7]} 47. Nxh6 {[%clk 0:00:25.3]}
47... d3 {[%clk 0:00:48]} 48. Nf5 {[%clk 0:00:24.5]} 48... Nd4+ {[%clk
0:00:47.2]} 49. Nxd4 {[%clk 0:00:24.6]} 49... Kxd4 {[%clk 0:00:48.1]} 0-1

[Event "*** Titled Tuesday Blitz"]
[Site "Chess.com"]
[Date "2020.03.03"]
[Round "1"]
[White "deBaller"]
[Black "Darhild"]
[Result "0-1"]
[WhiteElo "2353"]
[BlackElo "2703"]
[TimeControl "180+1"]
[EndTime "13:07:46 PST"]
[Termination "Darhild won by resignation"]

1. e4 {[%clk 0:03:00.5]} 1... c5 {[%clk 0:02:59.8]} 2. Nf3 {[%clk 0:02:58.8]}
2... d6 {[%clk 0:03:00.2]} 3. Bb5+ {[%clk 0:02:54.3]} 3... Nd7 {[%clk 0:03:00]}
4. Ba4 {[%clk 0:02:53.7]} 4... Nf6 {[%clk 0:02:57.5]} 5. O-O {[%clk 0:02:53.2]}
5... e5 {[%clk 0:02:36.8]} 6. Re1 {[%clk 0:02:49.5]} 6... Be7 {[%clk 0:02:36.7]}
7. c3 {[%clk 0:02:48.2]} 7... O-O {[%clk 0:02:37.1]} 8. d4 {[%clk 0:02:48]} 8...
a6 {[%clk 0:02:37.4]} 9. dxe5 {[%clk 0:02:43.5]} 9... dxe5 {[%clk 0:02:34.8]}
10. Bxd7 {[%clk 0:02:42.2]} 10... Nxd7 {[%clk 0:02:32.6]} 11. c4 {[%clk
0:02:42]} 11... Nb6 {[%clk 0:02:17.6]} 12. Qc2 {[%clk 0:02:32.3]} 12... Be6
{[%clk 0:02:11.9]} 13. b3 {[%clk 0:02:25.8]} 13... f6 {[%clk 0:01:56.6]} 14. h3
{[%clk 0:02:22.9]} 14... Qe8 {[%clk 0:01:35.7]} 15. Nc3 {[%clk 0:02:12.1]} 15...
Qg6 {[%clk 0:01:35.9]} 16. Kh2 {[%clk 0:01:59.4]} 16... Rad8 {[%clk 0:01:27.3]}
17. Be3 {[%clk 0:01:53.8]} 17... Rd4 {[%clk 0:01:16.6]} 18. Rac1 {[%clk
0:01:35.3]} 18... Bd6 {[%clk 0:01:03.4]} 19. Nd5 {[%clk 0:01:30.8]} 19... Bxd5
{[%clk 0:00:49.9]} 20. cxd5 {[%clk 0:01:23.1]} 20... Rxe4 {[%clk 0:00:44.5]} 21.
Nd2 {[%clk 0:00:58.3]} 21... Rxe3 {[%clk 0:00:41.3]} 22. Qxg6 {[%clk 0:00:53.2]}
22... hxg6 {[%clk 0:00:40.1]} 23. fxe3 {[%clk 0:00:46.6]} 23... e4+ {[%clk
0:00:33.1]} 24. Kg1 {[%clk 0:00:43.5]} 24... Bg3 {[%clk 0:00:33.3]} 25. Red1
{[%clk 0:00:40.2]} 25... f5 {[%clk 0:00:33.4]} 26. Rxc5 {[%clk 0:00:38.8]} 26...
Nd7 {[%clk 0:00:28.7]} 27. Rc2 {[%clk 0:00:36.5]} 27... Ne5 {[%clk 0:00:26.3]}
28. Nf1 {[%clk 0:00:36.3]} 28... Bh4 {[%clk 0:00:26.5]} 29. d6 {[%clk
0:00:33.9]} 29... Nd3 {[%clk 0:00:26.2]} 30. Rc7 {[%clk 0:00:27.1]} 30... b5
{[%clk 0:00:23.7]} 31. d7 {[%clk 0:00:25.1]} 31... Bd8 {[%clk 0:00:21.2]} 32.
Rc8 {[%clk 0:00:23.8]} 32... Kf7 {[%clk 0:00:20.8]} 33. Rd2 {[%clk 0:00:23.2]}
33... Ke7 {[%clk 0:00:20.8]} 34. Rc6 {[%clk 0:00:17.9]} 34... Rf6 {[%clk
0:00:19.2]} 35. Rdc2 {[%clk 0:00:16.7]} 35... Kxd7 {[%clk 0:00:19.1]} 36. Rxf6
{[%clk 0:00:14.6]} 36... gxf6 {[%clk 0:00:20]} 37. Nd2 {[%clk 0:00:14.9]} 37...
Bb6 {[%clk 0:00:19.9]} 38. Nf1 {[%clk 0:00:13.7]} 38... f4 {[%clk 0:00:20.2]}
39. Kh1 {[%clk 0:00:13]} 39... fxe3 {[%clk 0:00:19.1]} 40. Ng3 {[%clk
0:00:12.9]} 40... f5 {[%clk 0:00:18.1]} 41. Ne2 {[%clk 0:00:11]} 41... g5 {[%clk
0:00:17]} 42. g3 {[%clk 0:00:10.5]} 42... f4 {[%clk 0:00:16.6]} 43. gxf4 {[%clk
0:00:10.4]} 43... gxf4 {[%clk 0:00:17.5]} 44. Nc3 {[%clk 0:00:11.3]} 44... f3
{[%clk 0:00:16.6]} 45. Nxe4 {[%clk 0:00:11]} 45... e2 {[%clk 0:00:16.1]} 0-1

[Event "*** Titled Tuesday Blitz"]
[Site "Chess.com"]
[Date "2020.03.03"]
[Round "1"]
[White "Playgood28"]
[Black "JonahWillow"]
[Result "0-1"]
[WhiteElo "2256"]
[BlackElo "2631"]
[TimeControl "180+1"]
[EndTime "13:07:46 PST"]
[Termination "JonahWillow won on time"]

1. d4 {[%clk 0:02:59.1]} 1... d5 {[%clk 0:02:59.1]} 2. c4 {[%clk 0:02:58.9]}
2... dxc4 {[%clk 0:03:00]} 3. e4 {[%clk 0:02:57.5]} 3... Nc6 {[%clk 0:02:59.5]}
4. Nf3 {[%clk 0:02:49.2]} 4... Bg4 {[%clk 0:02:59.3]} 5. Bxc4 {[%clk 0:02:48]}
5... e6 {[%clk 0:02:43]} 6. d5 {[%clk 0:02:42.9]} 6... exd5 {[%clk 0:02:42.2]}
7. exd5 {[%clk 0:02:41]} 7... Ne5 {[%clk 0:02:04.2]} 8. Be2 {[%clk 0:02:21.8]}
8... Nxf3+ {[%clk 0:01:59.1]} 9. Bxf3 {[%clk 0:02:20.7]} 9... Bb4+ {[%clk
0:01:54.7]} 10. Nc3 {[%clk 0:02:19.1]} 10... Bxf3 {[%clk 0:01:51.4]} 11. Qxf3
{[%clk 0:02:14.6]} 11... Nf6 {[%clk 0:01:49.9]} 12. O-O {[%clk 0:02:12.7]} 12...
O-O {[%clk 0:01:35.3]} 13. Bg5 {[%clk 0:02:08.8]} 13... Bxc3 {[%clk 0:01:35.3]}
14. bxc3 {[%clk 0:02:04.1]} 14... Qxd5 {[%clk 0:01:34.8]} 15. Bxf6 {[%clk
0:01:44.7]} 15... Qxf3 {[%clk 0:01:33.1]} 16. gxf3 {[%clk 0:01:45.6]} 16... gxf6
{[%clk 0:01:33.9]} 17. Rab1 {[%clk 0:01:38.6]} 17... b6 {[%clk 0:01:32.4]} 18.
Rb4 {[%clk 0:01:38.1]} 18... Rad8 {[%clk 0:01:19.1]} 19. Rf4 {[%clk 0:01:34.4]}
19... Rd6 {[%clk 0:01:14.1]} 20. Re1 {[%clk 0:01:33.8]} 20... Rfd8 {[%clk
0:01:13.9]} 21. Re7 {[%clk 0:01:31.9]} 21... Rc6 {[%clk 0:01:11.3]} 22. c4
{[%clk 0:01:29.7]} 22... Kf8 {[%clk 0:01:11.3]} 23. Ree4 {[%clk 0:01:22.9]}
23... Rd2 {[%clk 0:01:11.2]} 24. Rh4 {[%clk 0:01:15.6]} 24... Rxa2 {[%clk
0:01:01.9]} 25. Rxh7 {[%clk 0:01:13.9]} 25... f5 {[%clk 0:00:54.2]} 26. Rd4
{[%clk 0:00:53.9]} 26... Rg6+ {[%clk 0:00:40.1]} 27. Kf1 {[%clk 0:00:49.5]}
27... Ra1+ {[%clk 0:00:41]} 28. Ke2 {[%clk 0:00:48.8]} 28... Re6+ {[%clk
0:00:41.6]} 29. Kd3 {[%clk 0:00:40.9]} 29... Rd1+ {[%clk 0:00:40.8]} 30. Kc3
{[%clk 0:00:41.1]} 30... Rxd4 {[%clk 0:00:41]} 31. Kxd4 {[%clk 0:00:41]} 31...
Kg8 {[%clk 0:00:29.9]} 32. Rh5 {[%clk 0:00:38.4]} 32... Re2 {[%clk 0:00:28.4]}
33. Rxf5 {[%clk 0:00:24.6]} 33... Rxf2 {[%clk 0:00:28.3]} 34. h4 {[%clk
0:00:24.3]} 34... Kg7 {[%clk 0:00:26.4]} 35. Kd5 {[%clk 0:00:22]} 35... Rc2
{[%clk 0:00:20.2]} 36. h5 {[%clk 0:00:19.4]} 36... a5 {[%clk 0:00:20]} 37. Kd4
{[%clk 0:00:14.7]} 37... a4 {[%clk 0:00:19.4]} 38. Rg5+ {[%clk 0:00:12.8]} 38...
Kf6 {[%clk 0:00:19.4]} 39. Rg1 {[%clk 0:00:11.1]} 39... a3 {[%clk 0:00:19.1]}
40. Rh1 {[%clk 0:00:08.7]} 40... Kg7 {[%clk 0:00:18.4]} 41. Ra1 {[%clk 0:00:05]}
41... a2 {[%clk 0:00:17.8]} 42. Kd3 {[%clk 0:00:04.8]} 42... Rh2 {[%clk
0:00:17.1]} 43. c5 {[%clk 0:00:04.6]} 43... bxc5 {[%clk 0:00:17.1]} 44. Kc4
{[%clk 0:00:03.5]} 44... Kh6 {[%clk 0:00:17.4]} 0-1

[Event "*** Titled Tuesday Blitz"]
[Site "Chess.com"]
[Date "2020.03.03"]
[Round "1"]
[White "johnathan113"]
[Black "vanyakuba"]
[Result "1-0"]
[WhiteElo "2763"]
[BlackElo "2410"]
[TimeControl "180+1"]
[EndTime "13:07:47 PST"]
[Termination "johnathan113 won on time"]

1. e4 {[%clk 0:02:57.1]} 1... d5 {[%clk 0:02:54.4]} 2. exd5 {[%clk 0:02:56.6]}
2... Qxd5 {[%clk 0:02:53.9]} 3. Nc3 {[%clk 0:02:55.8]} 3... Qa5 {[%clk
0:02:53.2]} 4. d4 {[%clk 0:02:56.2]} 4... Nf6 {[%clk 0:02:52.6]} 5. Nf3 {[%clk
0:02:55.9]} 5... Bg4 {[%clk 0:02:52.6]} 6. h3 {[%clk 0:02:45.1]} 6... Bh5 {[%clk
0:02:52]} 7. g4 {[%clk 0:02:41.7]} 7... Bg6 {[%clk 0:02:51.6]} 8. Ne5 {[%clk
0:02:42.6]} 8... e6 {[%clk 0:02:51.4]} 9. Bg2 {[%clk 0:02:42.1]} 9... c6 {[%clk
0:02:50.5]} 10. Bd2 {[%clk 0:02:39.2]} 10... Nbd7 {[%clk 0:02:46]} 11. Nxd7
{[%clk 0:02:31.5]} 11... Nxd7 {[%clk 0:02:41.7]} 12. Qe2 {[%clk 0:02:31.3]}
12... O-O-O {[%clk 0:02:19.5]} 13. d5 {[%clk 0:01:54.3]} 13... exd5 {[%clk
0:02:02.3]} 14. Nxd5 {[%clk 0:01:55.2]} 14... Qc5 {[%clk 0:01:45.6]} 15. Be3
{[%clk 0:01:12.1]} 15... Qxc2 {[%clk 0:01:45.3]} 16. Qxc2 {[%clk 0:01:09.7]}
16... Bxc2 {[%clk 0:01:46.2]} 17. Rc1 {[%clk 0:01:09.7]} 17... Bd3 {[%clk
0:01:37.5]} 18. Bxa7 {[%clk 0:01:05.5]} 18... Nb8 {[%clk 0:01:18.3]} 19. Nb6+
{[%clk 0:01:00.2]} 19... Kc7 {[%clk 0:01:18.3]} 20. Na8+ {[%clk 0:00:58.6]}
20... Kc8 {[%clk 0:01:14.1]} 21. Nb6+ {[%clk 0:00:57.1]} 21... Kc7 {[%clk
0:01:13.8]} 22. f4 {[%clk 0:00:53]} 22... Bb4+ {[%clk 0:01:12.6]} 23. Kf2 {[%clk
0:00:53.3]} 23... Na6 {[%clk 0:00:44]} 24. Nd5+ {[%clk 0:00:50.4]} 24... Kc8
{[%clk 0:00:43.6]} 25. Nb6+ {[%clk 0:00:49.3]} 25... Kc7 {[%clk 0:00:43.2]} 26.
Nd5+ {[%clk 0:00:43.5]} 26... Kc8 {[%clk 0:00:43.4]} 27. Rhd1 {[%clk 0:00:44.2]}
27... Bb5 {[%clk 0:00:26]} 28. Nb6+ {[%clk 0:00:44.1]} 28... Kc7 {[%clk
0:00:26.2]} 29. Nd5+ {[%clk 0:00:43.9]} 29... Kc8 {[%clk 0:00:25.8]} 30. a4
{[%clk 0:00:44.5]} 30... Rxd5 {[%clk 0:00:20.1]} 31. Rxd5 {[%clk 0:00:45.1]}
31... Bxa4 {[%clk 0:00:19.8]} 32. Re5 {[%clk 0:00:43.5]} 32... Rd8 {[%clk
0:00:17.9]} 33. Be3 {[%clk 0:00:41.2]} 33... Bd6 {[%clk 0:00:14.3]} 34. Ra5
{[%clk 0:00:39.4]} 34... Bb3 {[%clk 0:00:12.8]} 35. Bxc6 {[%clk 0:00:37.4]}
35... bxc6 {[%clk 0:00:12.7]} 36. Rxa6 {[%clk 0:00:37.6]} 36... Bd5 {[%clk
0:00:11.9]} 37. Ra7 {[%clk 0:00:32.4]} 37... Bc7 {[%clk 0:00:11]} 38. Rca1
{[%clk 0:00:30.6]} 38... c5 {[%clk 0:00:04.2]} 39. Bxc5 {[%clk 0:00:20.3]} 39...
Bc6 {[%clk 0:00:04.6]} 40. Be3 {[%clk 0:00:17]} 40... Rd3 {[%clk 0:00:02.9]} 41.
Rc1 {[%clk 0:00:14.9]} 41... Kd7 {[%clk 0:00:03.3]} 42. Bb6 {[%clk 0:00:11.5]}
42... Rb3 {[%clk 0:00:02.5]} 43. Rxc7+ {[%clk 0:00:10.7]} 1-0

[Event "*** Titled Tuesday Blitz"]
[Site "Chess.com"]
[Date "2020.03.03"]
[Round "1"]
[White "Aygehovit1992"]
[Black "northridgehawk"]
[Result "0-1"]
[WhiteElo "2604"]
[BlackElo "2254"]
[TimeControl "180+1"]
[EndTime "13:07:47 PST"]
[Termination "northridgehawk won on time"]

1. e4 {[%clk 0:03:00.9]} 1... e5 {[%clk 0:02:58.8]} 2. Bc4 {[%clk 0:02:59.9]}
2... Nc6 {[%clk 0:02:58.9]} 3. d3 {[%clk 0:02:58.4]} 3... Nf6 {[%clk 0:02:58.8]}
4. Nc3 {[%clk 0:02:58.6]} 4... Bc5 {[%clk 0:02:58.1]} 5. Be3 {[%clk 0:02:57]}
5... Bxe3 {[%clk 0:02:56.9]} 6. fxe3 {[%clk 0:02:57.9]} 6... O-O {[%clk
0:02:56.7]} 7. Qf3 {[%clk 0:02:57.1]} 7... d6 {[%clk 0:02:52.3]} 8. h3 {[%clk
0:02:57.2]} 8... Be6 {[%clk 0:02:50.8]} 9. Bb3 {[%clk 0:02:54.6]} 9... Ne7
{[%clk 0:02:49]} 10. Nge2 {[%clk 0:02:53.7]} 10... c6 {[%clk 0:02:47.8]} 11. g4
{[%clk 0:02:53.2]} 11... Ng6 {[%clk 0:02:46.3]} 12. Ng3 {[%clk 0:02:50.1]} 12...
a5 {[%clk 0:02:40.4]} 13. Nf5 {[%clk 0:02:48.1]} 13... b5 {[%clk 0:02:39.3]} 14.
a3 {[%clk 0:02:35.5]} 14... b4 {[%clk 0:02:38.1]} 15. Ne2 {[%clk 0:02:33.3]}
15... bxa3 {[%clk 0:02:32.9]} 16. Rxa3 {[%clk 0:02:27.3]} 16... a4 {[%clk
0:02:29.1]} 17. Bxa4 {[%clk 0:02:20.9]} 17... d5 {[%clk 0:02:27.6]} 18. Bxc6
{[%clk 0:02:13.6]} 18... Rxa3 {[%clk 0:02:26.4]} 19. bxa3 {[%clk 0:02:14.5]}
19... dxe4 {[%clk 0:02:25.8]} 20. Bxe4 {[%clk 0:02:15.4]} 20... Qa5+ {[%clk
0:02:25.3]} 21. Kf2 {[%clk 0:02:15.1]} 21... Nxe4+ {[%clk 0:02:22]} 22. Qxe4
{[%clk 0:02:13.7]} 22... Bd5 {[%clk 0:02:18.6]} 23. Qb4 {[%clk 0:01:29.9]} 23...
Qxb4 {[%clk 0:02:17.9]} 24. axb4 {[%clk 0:01:30.8]} 24... Bxh1 {[%clk
0:02:17.9]} 25. e4 {[%clk 0:01:29.8]} 25... Rc8 {[%clk 0:02:11]} 26. c4 {[%clk
0:01:24.8]} 26... Rd8 {[%clk 0:02:10.5]} 27. Neg3 {[%clk 0:01:05.1]} 27... Nf4
{[%clk 0:01:59]} 28. b5 {[%clk 0:00:53.3]} 28... Nxd3+ {[%clk 0:01:52.4]} 29.
Ke3 {[%clk 0:00:53.1]} 29... Nb2 {[%clk 0:01:42.2]} 30. c5 {[%clk 0:00:50.7]}
30... Nc4+ {[%clk 0:01:38.6]} 31. Kf2 {[%clk 0:00:50.5]} 31... Rd2+ {[%clk
0:01:35.5]} 32. Ke1 {[%clk 0:00:42.2]} 32... Bf3 {[%clk 0:01:25.1]} 33. c6
{[%clk 0:00:40.1]} 33... Rb2 {[%clk 0:01:19.4]} 34. c7 {[%clk 0:00:28.3]} 34...
Nb6 {[%clk 0:01:18.1]} 35. Ne7+ {[%clk 0:00:28.1]} 35... Kf8 {[%clk 0:01:16.7]}
36. Nd5 {[%clk 0:00:09.9]} 36... Nc8 {[%clk 0:01:10]} 37. b6 {[%clk 0:00:09.3]}
37... Ke8 {[%clk 0:01:03.6]} 38. Nf5 {[%clk 0:00:06.8]} 38... Kd7 {[%clk
0:01:00.8]} 39. Nfe7 {[%clk 0:00:06]} 39... Nd6 {[%clk 0:00:56.2]} 40. Nf5
{[%clk 0:00:03.2]} 40... Nc8 {[%clk 0:00:49.2]} 41. Nfe7 {[%clk 0:00:02.7]}
41... Bxe4 {[%clk 0:00:35.1]} 42. Nxc8 {[%clk 0:00:02.7]} 42... Bxd5 {[%clk
0:00:34]} 43. Nd6 {[%clk 0:00:02.9]} 43... Bb7 {[%clk 0:00:23.1]} 44. Nxb7
{[%clk 0:00:02.9]} 44... Rxb6 {[%clk 0:00:22.9]} 45. Nd8 {[%clk 0:00:03.4]}
45... Kxc7 {[%clk 0:00:21.5]} 46. Nxf7 {[%clk 0:00:02.9]} 46... Kc8 {[%clk
0:00:17.2]} 47. Kd2 {[%clk 0:00:01.5]} 47... Kd7 {[%clk 0:00:17.5]} 0-1

[Event "*** Titled Tuesday Blitz"]
[Site "Chess.com"]
[Date "2020.03.03"]
[Round "1"]
[White "Zubrrr"]
[Black "WeAintSurePal"]
[Result "1-0"]
[WhiteElo "2660"]
[BlackElo "2314"]
[TimeControl "180+1"]
[EndTime "13:07:50 PST"]
[Termination "Zubrrr won by checkmate"]

1. c4 {[%clk 0:02:54.3]} 1... e6 {[%clk 0:02:58.8]} 2. g3 {[%clk 0:02:54.2]}
2... c5 {[%clk 0:02:55.3]} 3. Bg2 {[%clk 0:02:54.1]} 3... Nc6 {[%clk 0:02:56.2]}
4. Nc3 {[%clk 0:02:53.6]} 4... Nf6 {[%clk 0:02:55]} 5. Nf3 {[%clk 0:02:54]} 5...
d5 {[%clk 0:02:55.3]} 6. cxd5 {[%clk 0:02:53.8]} 6... exd5 {[%clk 0:02:56.2]} 7.
d4 {[%clk 0:02:54.3]} 7... cxd4 {[%clk 0:02:56.7]} 8. Nxd4 {[%clk 0:02:54.2]}
8... Bc5 {[%clk 0:02:55.9]} 9. Nb3 {[%clk 0:02:54]} 9... Bb6 {[%clk 0:02:55.8]}
10. Nxd5 {[%clk 0:02:52]} 10... O-O {[%clk 0:02:48.7]} 11. Nxb6 {[%clk
0:02:05.1]} 11... Qxb6 {[%clk 0:02:49.6]} 12. Be3 {[%clk 0:02:04.1]} 12... Qb5
{[%clk 0:02:40.7]} 13. O-O {[%clk 0:01:55.3]} 13... Qh5 {[%clk 0:02:36.6]} 14.
f3 {[%clk 0:01:32.1]} 14... Re8 {[%clk 0:02:35]} 15. Bf2 {[%clk 0:01:30.7]}
15... Be6 {[%clk 0:02:31.1]} 16. Nc5 {[%clk 0:01:11.6]} 16... Bc4 {[%clk
0:02:28.6]} 17. Re1 {[%clk 0:01:11.1]} 17... b6 {[%clk 0:02:25.6]} 18. Qc2
{[%clk 0:00:40.2]} 18... Bxe2 {[%clk 0:01:52.8]} 19. Rxe2 {[%clk 0:00:32.1]}
19... bxc5 {[%clk 0:01:49.8]} 20. Rae1 {[%clk 0:00:28.6]} 20... Rxe2 {[%clk
0:01:41.7]} 21. Qxe2 {[%clk 0:00:28.3]} 21... Nd4 {[%clk 0:01:37.7]} 22. Qd3
{[%clk 0:00:28]} 22... Rd8 {[%clk 0:01:35]} 23. b4 {[%clk 0:00:25.4]} 23... h6
{[%clk 0:01:17.3]} 24. bxc5 {[%clk 0:00:23.6]} 24... Qxc5 {[%clk 0:01:18.2]} 25.
Rd1 {[%clk 0:00:20.8]} 25... Qa5 {[%clk 0:00:36.8]} 26. Bxd4 {[%clk 0:00:20.3]}
26... Qxa2 {[%clk 0:00:35.4]} 27. Qf1 {[%clk 0:00:14.6]} 27... Qc2 {[%clk
0:00:27.5]} 28. Rc1 {[%clk 0:00:12]} 28... Qf5 {[%clk 0:00:22.4]} 29. Bxa7
{[%clk 0:00:11.6]} 29... Nd5 {[%clk 0:00:20.6]} 30. Bf2 {[%clk 0:00:09.7]} 30...
Nb4 {[%clk 0:00:20]} 31. Rd1 {[%clk 0:00:09.6]} 31... Rc8 {[%clk 0:00:19.1]} 32.
Bh3 {[%clk 0:00:09.5]} 32... Qc2 {[%clk 0:00:11]} 33. Bxc8 {[%clk 0:00:09.3]}
33... Qxc8 {[%clk 0:00:11.9]} 34. Qb5 {[%clk 0:00:08.3]} 34... Nc2 {[%clk
0:00:06.8]} 35. Rc1 {[%clk 0:00:08.1]} 35... Qc3 {[%clk 0:00:06.2]} 36. Qe8+
{[%clk 0:00:07.9]} 36... Kh7 {[%clk 0:00:06.1]} 37. Qe4+ {[%clk 0:00:08.8]}
37... f5 {[%clk 0:00:06.7]} 38. Qxc2 {[%clk 0:00:09.4]} 38... Qxf3 {[%clk
0:00:06.3]} 39. Rf1 {[%clk 0:00:09.4]} 39... h5 {[%clk 0:00:06.1]} 40. Bc5
{[%clk 0:00:08.5]} 40... Qc6 {[%clk 0:00:06]} 41. Qxf5+ {[%clk 0:00:08.5]} 41...
Kh6 {[%clk 0:00:06.4]} 42. Be3+ {[%clk 0:00:08.3]} 42... g5 {[%clk 0:00:05.5]}
43. Qxg5+ {[%clk 0:00:08.6]} 43... Kh7 {[%clk 0:00:05.4]} 44. Rf7+ {[%clk
0:00:09.5]} 44... Kh8 {[%clk 0:00:06.3]} 45. Qg7# {[%clk 0:00:10.4]} 1-0